Cogmind - Beta 16.1 @@@ ROGUE MODE // 2026.04.02 @ 00:02:36 Player: WitherScout Result: Destroyed by Y-45 Defender with Beam Rifle Performance ------------- Evolutions (1) 500 Regions Visited (2) 400 Robots Destroyed (39) 195 Value Destroyed (1127) 1127 Prototype IDs (1) 20 Alien Tech Used (0) 0 Bonus (0) 0 TOTAL SCORE: 2242 Bonus ------- None Cogmind --------- Core Integrity 0/400 Matter 292/300 Energy 250/250 System Corruption 0% Temperature Cool (9) Movement Rolling (135) Ox3 Location -9/Materials Parts ------- > --- POWER (1) -------- Ion Engine > --- PROPULSION (2) --- Wheel Compact Wheel > --- UTILITY (4) ------ Huge Storage Unit Structural Scanner Sensor Array Utility Shielding > --- WEAPON (2) ------- High-powered Shotgun High-powered Shotgun > --- INVENTORY (25) --- Ion Engine Ion Engine Ion Engine Improved Ion Engine Light Treads Light Treads Flight Unit Flight Unit Flight Unit VTOL Module Improved VTOL Module Improved VTOL Module Improved VTOL Module Improved VTOL Module Structural Scanner Advanced Visual Processing Unit Advanced Visual Processing Unit Light Armor Plating Tractor Beam Medium Laser Heavy Assault Rifle High-powered Shotgun Grenade Launcher Katana Katana Peak State ------------ > --- POWER ------------ Reinforced Ion Engine > --- PROPULSION ------- Wheel Compact Wheel > --- UTILITY ---------- Huge Storage Unit Structural Scanner Sensor Array Utility Shielding > --- WEAPON ----------- High-powered Shotgun High-powered Shotgun > --- INVENTORY -------- Ion Engine Ion Engine Ion Engine Ion Engine Improved Ion Engine Light Treads Flight Unit Flight Unit Flight Unit VTOL Module Improved VTOL Module Improved VTOL Module Improved VTOL Module Improved VTOL Module Structural Scanner Advanced Visual Processing Unit Advanced Visual Processing Unit Tractor Beam Medium Laser Heavy Assault Rifle High-powered Shotgun Grenade Launcher Katana Katana [Rating: 18] Favorites ----------- Power Ion Engine Engine Ion Engine Propulsion Wheel Leg Aluminum Leg Wheel Wheel Flight Unit Improved VTOL Module Utility Sensor Array Device Sensor Array Storage Huge Storage Unit Protection Utility Shielding Weapon Light Assault Rifle Energy Gun Medium Laser Ballistic Gun Light Assault Rifle Launcher Grenade Launcher Build | -11 -10 -9 ------- Run | Yrd Mat Mat Slots Evolved 2 | . . 2 Power . | . . . Propulsion . | . . . Utility 2 | . . 2 Weapon . | . . . Parts Attached 29 | 5 4 20 Power 5 | 1 . 4 Engine 5 | 1 . 4 Core . | . . . Reactor . | . . . Propulsion 8 | 2 . 6 Treads . | . . . Leg 2 | . . 2 Wheel 5 | 2 . 3 Hover . | . . . Flight 1 | . . 1 Utility 6 | 1 1 4 Device 2 | . 1 1 Storage 2 | 1 . 1 Processor . | . . . Hackware . | . . . Protection 2 | . . 2 Artifact . | . . . Weapon 10 | 1 3 6 Energy Gun 1 | . 1 . Energy Cannon . | . . . Ballistic Gun 8 | 1 1 6 Ballistic Cannon . | . . . Launcher 1 | . 1 . Special Weapon . | . . . Impact Weapon . | . . . Slashing Weapon . | . . . Piercing Weapon . | . . . Special Melee Weapon . | . . . Unidentified Prototypes 1 | . . 1 Parts Lost 10 | . . 10 Power 2 | . . 2 Propulsion 3 | . . 3 Utility 1 | . . 1 Weapon 4 | . . 4 Highest Loss Streak 3 | . . 3 To Critical Strikes . | . . . Average Backups 19 | 3 6 22 Power 2 | . 1 2 Propulsion 6 | 1 2 7 Utility 2 | . . 3 Weapon 7 | . 2 8 Tool/Special . | . . . Unused Backups 23 | . 2 21 Power 4 | . . 4 Propulsion 11 | . 2 9 Utility 5 | . . 5 Weapon 3 | . . 3 Tool/Special . | . . . Average Slot Usage (%) 97 | . 96 97 Engine 11 | . 14 10 Leg 3 | . . 3 Wheel 18 | . 28 16 Device 17 | . 12 18 Storage 11 | . 14 11 Protection 11 | . . 13 Ballistic Gun 21 | . 15 21 Launcher 1 | . 10 . Peak Build Rating 18 | 5 7 18 Average Rating 13 | 4 6 14 On Entrance 4 | . 5 7 Avg Prop Armor Cover (%) 8 | . . 8 Naked Turns . | . . . Heaviest Build 97 | 12 16 97 Greatest Support 32 | 20 20 32 Greatest Overweight (x) 9 | 3 . 9 Average Overweight (x) 4 | . . 5 Largest Inventory Capacity 25 | 8 8 25 Average Capacity 22 | 7 8 24 Most Carried 25 | 7 8 25 Average Carried 19 | 3 6 22 Final Capacity 25 | 8 8 25 Final Carried 25 | 7 8 25 Class Distribution -------------------- 83% | Mutant 16% | Scavenger-Mutant Dominant Class ---------------- Mutant | -10/Materials Mutant | -9/Materials Resources | -11 -10 -9 ----------- Run | Yrd Mat Mat Matter Collected 949 | 228 161 560 Remotely . | . . . Salvage Created 1416 | . 198 1218 Parts 77 | . 11 66 Haulers Intercepted . | . . . Recyclers Shooed . | . . . Parts Field Recycled . | . . . Retrieved Matter . | . . . Parts Self-Destructed . | . . . Prevented . | . . . Parts Restored . | . . . Kills | -11 -10 -9 ------- Run | Yrd Mat Mat Combat Hostiles Destroyed 34 | . 7 27 Guns 32 | . 5 27 AOE 2 | . 2 . Classes Destroyed 8 | . 2 6 Worker 2 | . . 2 Recycler 2 | . . 2 Operator 1 | . . 1 Swarmer 6 | . 3 3 Grunt 22 | . 4 18 Brawler 1 | . . 1 Duelist 1 | . . 1 Sentry 4 | . . 4 Best Kill Streak 8 | . 2 8 Combat Bots Only 7 | . 2 7 Max Kills in Single Turn 2 | . 2 2 Gunslinging 1 | . . 1 Exploded 1 | . 1 . Melee . | . . . Uniques/NPCs Destroyed . | . . . Combat | -11 -10 -9 -------- Run | Yrd Mat Mat Hostile Shots Fired 182 | . 31 151 Missed 41 | . 10 31 Hits 141 | . 21 120 Melee 2 | . . 2 Projectile 139 | . 21 118 Critical Strikes 2 | . . 2 Damage Taken 1649 | . 207 1442 Core 429 | . 23 406 Absorbed by Shields . | . . . Redirected to Shielding 25 | . . 25 Regen/Repaired (Parts) 52 | . 52 . Core Remaining (%) 95 | 100 90 . Volleys Fired 102 | . 21 81 Largest 2 | . 2 2 Hottest 50 | . 50 50 Shots Fired 184 | . 30 154 Gun 181 | . 27 154 Cannon . | . . . Launcher 3 | . 3 . Special . | . . . Kinetic 181 | . 27 154 Thermal . | . . . Explosive 3 | . 3 . Electromagnetic . | . . . Robot Hit Streak 11 | . 4 11 Robot Miss Streak 7 | . 4 7 Penetration Max . | . . . Secondary Targets 4 | . 1 3 Max Gunslinging Chain 1 | . 1 1 Shots Hit Robots 120 | . 15 105 Core Hits 69 | . 10 59 Critical Kills . | . . . Critical Parts Destroyed 1 | . . 1 Critical Strikes 1 | . . 1 Destroy 1 | . . 1 Melee Attacks . | . . . Impact . | . . . Slashing . | . . . Piercing . | . . . Sneak Attacks . | . . . Combat Hostiles . | . . . Follow-up Attacks . | . . . Damage Inflicted 1759 | . 330 1429 Guns 1591 | . 162 1429 Cannons . | . . . Explosions 168 | . 168 . Melee . | . . . Ramming . | . . . Kinetic 1591 | . 162 1429 Thermal . | . . . Explosive 168 | . 168 . Electromagnetic . | . . . Impact . | . . . Slashing . | . . . Piercing . | . . . Highest Corruption 1 | . 1 . Average Corruption 1 | . 1 . Corruption Purged . | . . . Corruption Blocked . | . . . Effects 1 | . 1 . Heat Flow Errors 1 | . 1 . Overload Shots . | . . . Overflow Damage 5 | . 5 . Projectiles . | . . . Explosions 5 | . 5 . Melee . | . . . Knockbacks . | . . . Impact . | . . . Kinetic . | . . . Secondary . | . . . Self-Inflicted Damage . | . . . Shots . | . . . Rammed . | . . . Targets Rammed . | . . . Kicked . | . . . Crushed . | . . . Highest Temperature 196 | . 196 148 Average Temperature 53 | . 84 42 Received Heat Transfer 732 | . 72 660 Siege Activations . | . . . Martial Activations . | . . . Shielding Activations . | . . . Robots Disrupted . | . . . Combat Hostiles . | . . . Robots Corrupted . | . . . Combat Hostiles . | . . . Parts Fried . | . . . Impact Corruptions . | . . . Robots Melted . | . . . Combat Hostiles . | . . . Parts Melted . | . . . Heat Transferred . | . . . Parts Sabotaged . | . . . Parts Stolen . | . . . Parts Stripped . | . . . Power Chain Reactions . | . . . Alert | -11 -10 -9 ------- Run | Yrd Mat Mat Maximum Alert Level 1 | . . 1 Low Security (%) 78 | 100 100 74 Level 1 21 | . . 25 Level 2 . | . . . Level 3 . | . . . Level 4 . | . . . Level 5 . | . . . High Security . | . . . Max Security . | . . . Peak Influence 397 | . 166 397 Initial 65 | . . 65 Average 91 | . 47 102 Influence Increases 1030 | . 225 805 Destroy 0b10 Robot/C 680 | . 140 540 Destroy 0b10 Robot/NC 25 | . . 25 Destroy Leader 180 | . 30 150 Successful Hack 32 | . 32 . Destroy Structure 23 | . 23 . Lose Combat Pursuer 90 | . . 90 Influence Decreases 649 | . 69 580 Entered New Map 91 | . . 91 Time Decay 468 | . 69 399 Lost Part 90 | . . 90 Squads Dispatched 10 | . 3 7 Investigation 7 | . 2 5 Extermination . | . . . Reinforcement 3 | . 1 2 Assault . | . . . Garrison . | . . . Intercept . | . . . Searches Triggered . | . . . Construction Impeded . | . . . Haulers Reinforced . | . . . Active Scanning Responses . | . . . Cargo Convoy Interrupts . | . . . Stealth | -11 -10 -9 --------- Run | Yrd Mat Mat Distress Signals 2 | . . 2 Communications Jammed . | . . . Distress Signals . | . . . Times Spotted 53 | . 9 44 Peak Tracking Total 5 | . 4 5 Tactical Retreats 5 | . . 5 Traps | -11 -10 -9 ------- Run | Yrd Mat Mat Traps Triggered 1 | . . 1 Indirectly . | . . . Trap Hack Attempts . | . . . Triggered . | . . . Disarmed . | . . . Reprogrammed . | . . . Reused . | . . . Traps Extracted . | . . . Installed . | . . . Triggered . | . . . Machines | -11 -10 -9 ---------- Run | Yrd Mat Mat Machines Disabled . | . . . Max in Single Turn . | . . . Machines Repaired . | . . . Machines Dismantled . | . . . Machines Sabotaged . | . . . Overloaded Fab Kills . | . . . Hacking | -11 -10 -9 --------- Run | Yrd Mat Mat Machines Accessed 8 | . 4 4 Terminals 5 | . 3 2 Fabricators . | . . . Repair Stations 1 | . 1 . Recycling Units 1 | . . 1 Scanalyzers 1 | . . 1 Garrison Access . | . . . Total Hacks 26 | . 13 13 Successful 12 | . 7 5 Failed 14 | . 6 8 Catastrophic 4 | . 2 2 Database Lockouts . | . . . Manual 4 | . 4 . Terminals 18 | . 11 7 Fabricators . | . . . Repair Stations 2 | . 2 . Recycling Units 3 | . . 3 Scanalyzers 3 | . . 3 Garrison Access . | . . . Terminal Hacks 7 | . 5 2 Branch Access Points 1 | . 1 . Locate Traps 2 | . 2 . Dispatch Records 2 | . 1 1 Zone Layout 2 | . 1 1 Fabricator Hacks . | . . . Repair Station Hacks 2 | . 2 . Scan Component 1 | . 1 . Repair 1 | . 1 . Recycling Unit Hacks . | . . . Scanalyzer 3 | . . 3 Retrieve Study 3 | . . 3 Garrison Access Hacks . | . . . Unauthorized Hacks . | . . . Terminals . | . . . Fabricators . | . . . Repair Stations . | . . . Recycling Units . | . . . Scanalyzers . | . . . Garrison Access . | . . . Data Cores Recovered . | . . . Used . | . . . Hacking Detections 6 | . 2 4 Full Trace Events 6 | . 2 4 Feedback Events 1 | . 1 . Corruption 1 | . 1 . Feedback Blocked . | . . . Robot Schematics Acquired . | . . . Robots Built . | . . . Authchips . | . . . Time . | . . . Total Robot Build Rating . | . . . Part Schematics Acquired . | . . . Parts Built . | . . . Authchips . | . . . Time . | . . . Total Part Build Rating . | . . . Part Studies Acquired 3 | . . 3 Parts Repaired 1 | . 1 . Time 26 | . 26 . Parts Recycled . | . . . Recycled Matter . | . . . Retrieved Matter . | . . . Retrieved Components . | . . . Parts Scanalyzed . | . . . Part Schematics Acquired . | . . . Parts Damaged . | . . . Bothacking | -11 -10 -9 ------------ Run | Yrd Mat Mat Used RIF Installer . | . . . Robots Hacked . | . . . Non-combat . | . . . Combat . | . . . Robot Hacks Applied . | . . . Relay Couplers Released . | . . . Fabnet Peak Effective % . | . . . Robots Rewired . | . . . Allies Hacked . | . . . Hacks Repelled . | . . . Allies | -11 -10 -9 -------- Run | Yrd Mat Mat Total Allies . | . . . Largest Group . | . . . Highest-Rated Group . | . . . Highest-Rated Ally . | . . . Total Orders . | . . . Ally Attacks . | . . . Total Damage . | . . . Kills . | . . . Allies Corrupted . | . . . Allies Melted . | . . . Intel | -11 -10 -9 ------- Run | Yrd Mat Mat Active Infowar (turns) 1674 | . 210 1464 Sensors 1674 | . 210 1464 Structural 1017 | . . 1017 Robot Analysis Total . | . . . Derelict Logs Recovered . | . . . Drone Launches . | . . . Drone Recoveries . | . . . Exploration | -11 -10 -9 ------------- Run | Yrd Mat Mat Turns Passed 1742 | 56 222 1464 Spaces Moved 906 | 47 181 678 Core 8 | 8 . . Treads . | . . . Legs . | . . . Wheels 898 | 39 181 678 Hover . | . . . Flight . | . . . Fastest Speed 50 | 50 80 80 Average Speed 144 | 84 80 165 Slowest Speed 215 | 200 80 215 Overloaded Moves . | . . . Propulsion Burnouts . | . . . Robots Hopped . | . . . Potential Cave-ins . | . . . Cave-ins Triggered . | . . . Exploration Rate (%) 33 | 3 40 58 Regions Visited 2 Branch Regions . Pre-discovered Areas . | . . . Known Exits Taken . | . . . Unknown Exits Taken 2 | 1 1 . Scrap Searched . | . . . Spaces Dug . | . . . Terrain Destroyed 28 | . 28 . Melee . | . . . Projectile . | . . . AOE 28 | . 28 . Terrain Rammed . | . . . Walls Destroyed . | . . . Machines Disabled . | . . . Actions | -11 -10 -9 --------- Run | Yrd Mat Mat Total 1168 | 60 229 879 Wait 73 | 2 17 54 Move 904 | 46 180 678 Hop . | . . . Pick Up 46 | 7 5 34 Fast Attach 8 | 5 1 2 Attach 16 | . 2 14 Detach 2 | . . 2 Swap 7 | . 1 6 Drop 10 | . 2 8 Fire 102 | . 21 81 Melee . | . . . Ram . | . . . Kick . | . . . Crush . | . . . Escape Stasis . | . . . Rewire . | . . . Trap . | . . . Miscellaneous . | . . . Route ------- -11/Scrapyard -10/Materials (discovered 2 exits: *Mat / Min) -9/Materials History --------- Turn | Location | Event 33 | -11/Scrapyard | Discovered new exit (range 15) 57 | -11/Scrapyard | Entered Materials 101 | -10/Materials | Identified exit to Mines 219 | -10/Materials | Discovered new exit (range 16) 269 | -10/Materials | Repaired Grenade Launcher 279 | -10/Materials | Entered another Materials area 279 | -9/Materials | Evolved 2 slots: Utility x2 308 | -9/Materials | Build established: Mutant 1298 | -9/Materials | Destroyed 7 combat bots 1412 | -9/Materials | Core integrity fell below 50% 1430 | -9/Materials | Lost 3 parts (1n2w) 1655 | -9/Materials | Core integrity fell below 20% 1743 | -9/Materials | Destroyed by Y-45 Defender with Beam Rifle Last Messages --------------- 01636_ K-01 Serf cleans the Terminal. 01646_ Hvy. Assault Rifle+ severed. 01647_ L-31 Rogue destroyed. 01647_ K-01 Serf collects debris. 01650_ K-01 Serf destroyed. 01653_ K-01 Serf collects debris. 01656_ G-34 Mercenary destroyed. 01656_ Switching to secondary target: G-34 Mercenary. 01656_ G-34 Mercenary destroyed. 01656_ K-01 Serf collects debris. 01659_ Acquired 33 matter. 01659_ K-01 Serf collects debris. 01662_ Acquired Hvy. Assault Rifle+. 01663_ K-01 Serf collects debris. 01670_ G-34 Mercenary destroyed. 01679_ Acquired 31 matter. 01680_ Acquired 12 matter. 01685_ Dropped Ion Engine. 01687_ Acquired 10 matter. Map ----- +----------------------------------------------------+ | ????????????????###??????## ######### # | | ????????????????###??????## ###################+## | | ## ?????????????## T????? # ##?????######## """ "" | | ##+?????????????## ??? # ####?????????## """ "" | | ?????????????## ? # ####?????????## """ "" | | " ""? ##????????## # ##?????????## | | " """ ##????????## + ##?????????## ! / | | " """ ##????????## """ # ##?????????## | | ##????????## """ ? # ##?????????## "T" | | "T" ##?????????? """??? # ##?????????## """ | | """????????????? ???? # ###????????######### | | ##################### ###????????######### | | #+######################## ##????????????????? | | %* ##????????????????? | | = ##????????????????? | | = %* ##????????????????? | | ########+################# ##????????????????? | | ###### ###################????????????????? | | ###### """ "" ##????????#########????????????????? | | ###### """ """##?????????????????????????????????? | | # """ S"##?????????????????????????????????? | | # ##?????????????????????????????????? | | # """ ##################?????????????????? | | ## # """ ########################???????????? | | # # """ !## # ########???????????? | | # # ## #@ ????????? | | # ########### + Y ????????? | | # ##### # ????????? | | # ##### ##### # ##########+????????? | | + ##### ##### ###+########## ????????? | | ######?## /? # ?????????????????? | | # #?## ##### # ???????????????????????? | | ????????## ##### # ???????????????????????? | | ??????? ##?########### ???????????????????????? | | ???????######?########### ???????????????????????? | | ???????######????????????????????????????????????? | | ?????????????????????????????????????????????????? | | ?????????????????????????????????????????????????? | | ?????????????????????????????????????????????????? | | ?????????????????????????????????????????????????? | | | | | | | | | | | | | | | | | | | | | +----------------------------------------------------+ Best States ------------- Heat Dissipation 28 Energy Generation 12 Energy Capacity 265 Matter Stores 300 Matter Capacity 300 Sight Range 16 Robot Scan Range 14 Terrain Scan Density 10 Armor Coverage 150 Utility Shielding 33 Evasion (%) 44 Item Schematics ----------------- None Robot Schematics ------------------ None Fabricated ------------ Nothing Repaired ---------- Grenade Launcher | 13% | -10/Materials Studied --------- VTOL Module | -9/Materials | Hacked Flight Unit | -9/Materials | Hacked Hvy. Assault Rifle | -9/Materials | Hacked Alien Tech Used ----------------- None Achievements -------------- None Challenges ------------ None Game ------ Seed MeleeRocketSuperbattery Manual? 0 Play Time 00:24:34 Cumulative 59.4 hours Start 2026.04.01 @ 23:38:47 End 2026.04.02 @ 00:02:36 Sessions 1 Manual Loads 0 Difficulty Rogue Special Mode None Game No. 96 Rogue 96 Adventurer 0 Explorer 0 Win Type - Total 0 Types 0/0/0/0/0/0/0/0/0/0 Lore% 15 Gallery% 30 Achievement% 21 Wizard Run 0 Options --------- Layout 1 ASCII 1 Keyboard 0 Movement Mouse Keybinds 0 Fullscreen 1 Font 24/Cog Map View 50x35 Zoom Use 0% Tactical HUD 1 Map Filters NONE Filters NONE Steam 0 RUN: f07d213e-e2c2-404f-8fdf-67f3cbb59962